fUST/lending_fUST_20251214
["ID","MTS","AMOUNT","RATE_DAILY","PERIOD"]
[398448701,1765664953698,-500.0,0.00013699,2]
[398448702,1765664953717,-500.0,0.00013699,2]
[398448703,1765664953736,-500.0,0.00013699,2]
[398448704,1765664953756,-500.0,0.00013699,2]
[398448705,1765664953774,-500.0,0.00013699,2]
[398448706,1765664953793,-500.0,0.00013699,2]
[398448707,1765664953812,-500.0,0.00013699,2]
[398448708,1765664953831,-500.0,0.00013699,2]
[398448709,1765664953849,-500.0,0.00013699,2]
[398448710,1765664953870,-26958.2883128,0.0001372,2]
[398448711,1765664953890,-236.61727461,0.00013819,2]
[398448712,1765664953910,-1001.28636889,0.00013821,2]
[398448713,1765664953936,-1001.06306379,0.00013821,2]
[398448714,1765664953957,-457.96658946,0.00013821,2]
[398448716,1765664953983,-500.0,0.00013821,2]
[398448717,1765664954006,-500.0,0.00013821,2]
[398448718,1765664954026,-500.0,0.00013821,2]
[398448719,1765664954046,-500.0,0.00013821,2]
[398448720,1765664954065,-21.26461785,0.00013821,2]
[398448721,1765664954755,500.0,0.00013273,2]
[398448725,1765664963502,478.73538215,0.00013273,2]
[398448726,1765664964264,500.0,0.00013273,2]
[398448727,1765664964857,500.0,0.00013273,2]
[398448747,1765664967563,500.0,0.00013273,2]
[398448750,1765664976575,3051.1041242,0.000132,2]
[398448751,1765665004200,282.64362334,0.00013273,2]
[398448754,1765665007743,500.0,0.00013273,2]
[398448755,1765665008020,500.0,0.00013273,2]
[398448756,1765665008655,500.0,0.00013273,2]
[398448767,1765665032066,-300.0,0.00013673,2]
[398448768,1765665032076,-383.53688728,0.00013673,2]
[398448769,1765665032124,-231.46311272,0.00013673,2]
[398448770,1765665032134,-500.0,0.00013697,2]
[398448771,1765665032143,-72.555999,0.00013697,2]
[398448817,1765665037960,-229.60102699,0.00013697,2]
[398448818,1765665037969,-223.01904542,0.00013698,2]
[398448819,1765665037978,-500.60114984,0.00013699,2]
[398448820,1765665037987,-157.56477775,0.00013699,2]
[398448821,1765665037999,-344.01801824,0.00013699,2]
[398448822,1765665038012,-500.64704668,0.00013699,2]
[398448823,1765665038021,-306.98042017,0.00013699,2]
[398448824,1765665038030,-602.19035642,0.00013821,2]
[398448825,1765665038040,-300.0,0.00014221,2]
[398448826,1765665038049,-300.0,0.00014301,2]
[398448827,1765665038058,-2942.80813526,0.00014302,2]
[398448828,1765665038068,-11376.68346606,0.00014302,2]
[398448829,1765665038078,-156.587,0.00014391,2]
[398448830,1765665038086,-333.0,0.00014391,2]
[398448831,1765665038096,-574.12855637,0.00014391,2]
[398448832,1765665038105,-1200.0,0.000144,2]
[398448833,1765665038116,-300.0,0.000144,2]
[398448835,1765665038126,-5545.59,0.00014401,2]
[398448836,1765665038136,-500.0,0.00014401,2]
[398448837,1765665038146,-5545.59,0.00014402,2]
[398448838,1765665038155,-500.0,0.00014402,2]
[398448839,1765665038165,-7693.69868049,0.00014492,2]
[398448840,1765665038175,-500.0,0.00014591,2]
[398448841,1765665038184,-586.4,0.00014591,2]
[398448842,1765665038194,-500.0,0.00014592,2]
[398448843,1765665038203,-500.0,0.00014592,2]
[398448844,1765665038213,-1193.92,0.00014592,2]
[398448845,1765665038223,-500.0,0.00014592,2]
[398448846,1765665038232,-500.0,0.00014592,2]
[398448847,1765665038242,-500.0,0.00014592,2]
[398448848,1765665038252,-5545.59,0.00014593,2]
[398448849,1765665038262,-500.0,0.00014593,2]
[398448850,1765665038271,-500.0,0.00014594,2]
[398448851,1765665038280,-500.0,0.00014594,2]
[398448852,1765665038289,-500.0,0.00014594,2]
[398448853,1765665038299,-1193.92,0.00014594,2]
[398448854,1765665038308,-586.4,0.00014594,2]
[398448855,1765665038317,-510.20663399,0.00014594,2]
[398448856,1765665038326,-500.0,0.00014594,2]
[398448857,1765665038336,-500.0,0.00014594,2]
[398448858,1765665038345,-10294.872551,0.00014594,2]
[398448859,1765665038355,-7693.69868048,0.0001469,2]
[398448860,1765665038365,-7693.69868048,0.00014887,2]
[398448861,1765665038374,-436.61239893,0.00014904,2]
[398448862,1765665038384,-333.0,0.00014939,2]
[398448863,1765665038393,-595.37131296,0.00014939,2]
[398448864,1765665038403,-500.0,0.0001497,2]
[398448865,1765665038412,-537.0,0.0001497,2]
[398448866,1765665038421,-150.0,0.0001497,2]
[398448867,1765665038430,-500.0,0.0001497,2]
[398448868,1765665038439,-198.0,0.0001497,2]
[398448869,1765665038448,-500.0,0.0001497,2]
[398448870,1765665038457,-500.0,0.0001497,2]
[398448871,1765665038466,-500.0,0.0001497,2]
[398448872,1765665038476,-467.0,0.0001497,2]
[398448873,1765665038485,-500.0,0.0001497,2]
[398448874,1765665038494,-500.0,0.0001497,2]
[398448875,1765665038504,-515.0,0.0001497,2]
[398448876,1765665038513,-150.0,0.0001497,2]
[398448877,1765665038523,-150.0,0.0001497,2]
[398448878,1765665038532,-500.0,0.0001497,2]
[398448879,1765665038541,-500.0,0.0001497,2]
[398448880,1765665038550,-500.0,0.0001497,2]
[398448881,1765665038560,-500.0,0.0001497,2]
[398448882,1765665038573,-151.0,0.0001497,2]
[398448883,1765665038582,-150.0,0.0001497,2]
[398448884,1765665038591,-500.0,0.0001497,2]
[398448885,1765665038600,-150.0,0.0001497,2]
[398448886,1765665038610,-500.0,0.0001497,2]
[398448887,1765665038619,-150.0,0.0001497,2]
[398448888,1765665038628,-500.0,0.0001497,2]
[398448889,1765665038638,-500.0,0.0001497,2]
[398448890,1765665038647,-150.0,0.0001497,2]
[398448891,1765665038897,-244.86727418,0.0001497,2]
[398448892,1765665038908,-500.0,0.0001497,2]
[398448893,1765665038917,-500.0,0.0001497,2]
[398448894,1765665038927,-500.0,0.0001497,2]
[398448895,1765665038938,-150.0,0.0001497,2]
[398448896,1765665038947,-500.0,0.0001497,2]
[398448897,1765665038956,-151.0,0.00015,2]
[398448898,1765665038968,-151.0,0.00015,2]
[398448899,1765665038977,-1680.0,0.0001501,2]
[398448900,1765665038986,-195.499974,0.00015068,2]
[398448901,1765665038995,-312.02458303,0.00015075,2]
[398448902,1765665039005,-7693.69868048,0.00015085,2]
[398448903,1765665039018,-151.0,0.000151,2]
[398448904,1765665039028,-151.0,0.000151,2]
[398448905,1765665039037,-151.0,0.000151,2]
[398448906,1765665039046,-500.0,0.00015107,2]
[398448907,1765665039057,-537.0,0.00015107,2]
[398448908,1765665039067,-150.0,0.00015107,2]
[398448909,1765665039077,-500.0,0.00015107,2]
[398448910,1765665039086,-502.15631588,0.00015107,2]
[398448911,1765665039095,-500.0,0.00015107,2]
[398448912,1765665039104,-500.0,0.00015107,2]
[398448913,1765665039113,-467.0,0.00015107,2]
[398448914,1765665039123,-500.0,0.00015107,2]
[398448915,1765665039132,-500.0,0.00015107,2]
[398448916,1765665039141,-515.0,0.00015107,2]
[398448917,1765665039151,-150.0,0.00015107,2]
[398448918,1765665039160,-150.0,0.00015107,2]
[398448919,1765665039169,-500.0,0.00015107,2]
[398448920,1765665039179,-641.79806461,0.00015107,2]
[398448921,1765665039188,-500.0,0.00015107,2]
[398448922,1765665039197,-500.0,0.00015107,2]
[398448923,1765665039207,-150.0,0.00015107,2]
[398448924,1765665039216,-500.0,0.00015107,2]
[398448925,1765665039225,-150.0,0.00015107,2]
[398448926,1765665039234,-644.05816215,0.00015107,2]
[398448927,1765665039244,-150.0,0.00015107,2]
[398448928,1765665039253,-500.0,0.00015107,2]
[398448929,1765665039263,-500.0,0.00015107,2]
[398448930,1765665039272,-152.55389444,0.00015107,2]
[398448931,1765665039282,-500.0,0.00015107,2]
[398448932,1765665039292,-500.0,0.00015107,2]
[398448933,1765665039301,-500.0,0.00015107,2]
[398448934,1765665039311,-500.0,0.00015107,2]
[398448935,1765665039320,-586.4,0.00015107,2]
[398448936,1765665039330,-5545.59,0.00015107,2]
[398448937,1765665039339,-500.0,0.00015107,2]
[398448938,1765665039349,-10000.0,0.00015198,2]
[398448939,1765665039359,-151.0,0.000152,2]
[398448940,1765665039369,-151.0,0.000152,2]
[398448941,1765665039379,-1107.17,0.00015234,3]
[398448942,1765665039388,-553.59,0.00015234,3]
[398448943,1765665039398,-276.79,0.00015234,3]
[398448944,1765665039411,-830.41,0.00015234,3]
[398448945,1765665039422,-500.0,0.00015244,2]
[398448946,1765665039432,-537.0,0.00015244,2]
[398448947,1765665039441,-150.0,0.00015244,2]
[398448948,1765665039451,-500.0,0.00015244,2]
[398448949,1765665039460,-500.0,0.00015244,2]
[398448950,1765665039469,-500.0,0.00015244,2]
[398448951,1765665039478,-305.15246767,0.00015244,2]
[398448952,1765665039487,-467.0,0.00015244,2]
[398448953,1765665039496,-500.0,0.00015244,2]
[398448954,1765665039505,-515.0,0.00015244,2]
[398448955,1765665039515,-206.34935376,0.00015244,2]
[398448956,1765665039524,-150.0,0.00015244,2]
[398448957,1765665039533,-506.63919728,0.00015244,2]
[398448958,1765665039542,-500.0,0.00015244,2]
[398448959,1765665039551,-500.0,0.00015244,2]
[398448960,1765665039560,-150.0,0.00015244,2]
[398448961,1765665039569,-500.0,0.00015244,2]
[398448962,1765665039578,-150.0,0.00015244,2]
[398448963,1765665039587,-150.0,0.00015244,2]
[398448964,1765665039596,-500.0,0.00015244,2]
[398448965,1765665039606,-500.0,0.00015244,2]
[398448966,1765665039615,-500.0,0.00015244,2]
[398448967,1765665039624,-500.0,0.00015244,2]
[398448968,1765665039633,-500.0,0.00015244,2]
[398448969,1765665039642,-500.0,0.00015244,2]
[398448970,1765665039651,-1193.92,0.00015244,2]
[398448971,1765665039660,-500.0,0.00015244,2]
[398448972,1765665039668,-5545.59,0.00015244,2]
[398448973,1765665039677,-500.0,0.00015244,2]
[398448974,1765665039687,-500.0,0.00015244,2]
[398448975,1765665039695,-500.0,0.00015244,2]
[398448976,1765665039704,-3168.08,0.00015261,2]
[398448977,1765665039713,-500.0,0.00015281,2]
[398448978,1765665039722,-586.4,0.00015281,2]
[398448979,1765665039731,-5545.59,0.00015282,2]
[398448980,1765665039740,-7693.69868048,0.00015282,2]
[398448981,1765665039749,-500.0,0.00015282,2]
[398448982,1765665039758,-10000.0,0.00015283,2]
[398448983,1765665039767,-5545.59,0.00015292,2]
[398448984,1765665039776,-500.0,0.00015292,2]
[398448985,1765665039785,-500.0,0.00015295,2]
[398448986,1765665039794,-586.4,0.00015295,2]
[398448987,1765665039803,-500.0,0.00015299,2]
[398448988,1765665039813,-715.63,0.00015299,2]
[398448989,1765665039822,-771.69,0.00015299,2]
[398448990,1765665039833,-586.4,0.00015299,2]
[398448991,1765665039843,-5545.59,0.00015299,2]
[398448992,1765665039853,-500.0,0.00015299,2]
[398448993,1765665039862,-151.0,0.000153,2]
[398448994,1765665039872,-151.0,0.000153,2]
[398448995,1765665039882,-151.0,0.000153,2]
[398448996,1765665039892,-151.0,0.000153,2]
[398448997,1765665039901,-151.0,0.000153,2]
[398448998,1765665039911,-151.0,0.000153,2]
[398448999,1765665039921,-151.0,0.000153,2]
[398449000,1765665039931,-151.0,0.000153,2]
[398449002,1765665039942,-151.0,0.000153,2]
[398449003,1765665039952,-151.0,0.000153,2]
[398449004,1765665039961,-7453.62816446,0.000153,2]
[398449005,1765665039970,-184.6118033,0.00015322,2]
[398449006,1765665039980,-167.4190557,0.00015322,2]
[398449007,1765665039989,-3168.08,0.0001538,2]
[398449008,1765665039998,-500.0,0.00015381,2]
[398449009,1765665040011,-537.0,0.00015381,2]
[398449010,1765665040022,-202.81737922,0.00015381,2]
[398449011,1765665040031,-500.0,0.00015381,2]
[398449012,1765665040040,-500.0,0.00015381,2]
[398449013,1765665040049,-500.0,0.00015381,2]
[398449014,1765665040058,-467.0,0.00015381,2]
[398449015,1765665040067,-500.0,0.00015381,2]
[398449016,1765665040076,-515.0,0.00015381,2]
[398449017,1765665040085,-212.92315284,0.00015381,2]
[398449018,1765665040094,-500.0,0.00015381,2]
[398449019,1765665040103,-500.0,0.00015381,2]
[398449020,1765665040112,-201.19237479,0.00015381,2]
[398449021,1765665040122,-217.01387877,0.00015381,2]
[398449022,1765665040131,-150.0,0.00015381,2]
[398449023,1765665040141,-152.94685263,0.00015381,2]
[398449024,1765665040150,-500.0,0.00015381,2]
[398449025,1765665040161,-500.0,0.00015381,2]
[398449026,1765665040170,-500.0,0.00015381,2]
[398449027,1765665040180,-500.0,0.00015381,2]
[398449028,1765665040189,-500.0,0.00015381,2]
[398449029,1765665040198,-500.0,0.00015381,2]
[398449030,1765665040207,-500.0,0.00015381,2]
[398449031,1765665040216,-500.0,0.00015381,2]
[398449032,1765665040226,-715.63,0.00015381,2]
[398449033,1765665040235,-1193.92,0.00015381,2]
[398449034,1765665040245,-771.69,0.00015381,2]
[398449035,1765665040255,-586.4,0.00015381,2]
[398449036,1765665040268,-586.4,0.00015381,2]
[398449037,1765665040278,-500.0,0.00015381,2]
[398449038,1765665040288,-5545.59,0.00015381,2]
[398449039,1765665040297,-500.0,0.00015381,2]
[398449040,1765665040306,-500.0,0.00015381,2]
[398449041,1765665040316,-200.0,0.00015382,2]
[398449042,1765665040326,-160.16870411,0.00015382,2]
[398449043,1765665040335,-200.0,0.00015382,2]
[398449044,1765665040344,-500.0,0.00015382,2]
[398449045,1765665040354,-500.0,0.00015382,2]
[398449046,1765665040363,-500.0,0.00015382,2]
[398449047,1765665040372,-500.0,0.00015382,2]
[398449048,1765665040382,-500.0,0.00015382,2]
[398449049,1765665040391,-500.0,0.00015382,2]
[398449050,1765665040400,-500.0,0.00015382,2]
[398449051,1765665040410,-500.0,0.00015382,2]
[398449052,1765665040419,-500.0,0.00015382,2]
[398449053,1765665040428,-500.0,0.00015382,2]
[398449054,1765665040437,-500.0,0.00015382,2]
[398449055,1765665040446,-500.0,0.00015382,2]
[398449056,1765665040455,-500.0,0.00015382,2]
[398449057,1765665040464,-500.0,0.00015382,2]
[398449058,1765665040474,-500.0,0.00015382,2]
[398449059,1765665040483,-459.08840387,0.00015382,2]
[398449060,1765665040492,-3168.08,0.00015382,2]
[398449061,1765665040501,-3168.08,0.00015382,2]
[398449062,1765665040510,-3168.08,0.00015382,2]
[398449063,1765665040519,-3168.08,0.00015382,2]
[398449064,1765665040528,-3168.08,0.00015382,2]
[398449065,1765665040537,-3168.08,0.00015382,2]
[398449066,1765665040546,-3168.08,0.00015382,2]
[398449067,1765665040555,-3168.08,0.00015382,2]
[398449068,1765665040564,-3168.08,0.00015382,2]
[398449070,1765665040573,-3168.08,0.00015382,2]
[398449072,1765665040582,-3168.08,0.00015382,2]
[398449073,1765665040591,-3168.08,0.00015382,2]
[398449074,1765665040601,-3168.08,0.00015382,2]
[398449075,1765665040609,-3168.08,0.00015382,2]
[398449076,1765665040618,-3168.08,0.00015382,2]
[398449078,1765665040628,-3168.08,0.00015382,2]
[398449079,1765665040637,-3168.08,0.00015382,2]
[398449080,1765665040646,-3168.08,0.00015382,2]
[398449081,1765665040655,-3168.08,0.00015382,2]
[398449082,1765665040664,-3168.08,0.00015382,2]
[398449083,1765665040673,-3168.08,0.00015382,2]
[398449084,1765665040682,-3168.12424712,0.00015382,2]
[398449085,1765665040691,-500.0,0.00015382,2]
[398449086,1765665040700,-282.56,0.00015382,2]
[398449087,1765665040709,-1000.0,0.00015382,2]
[398449088,1765665040718,-1000.0,0.00015382,2]
[398449089,1765665040727,-1000.0,0.00015382,2]
[398449090,1765665040735,-1000.0,0.00015382,2]
[398449091,1765665040745,-1000.0,0.00015382,2]
[398449092,1765665040754,-1000.0,0.00015382,2]
[398449093,1765665040763,-1000.0,0.00015382,2]
[398449094,1765665040772,-1000.0,0.00015382,2]
[398449095,1765665040781,-1000.0,0.00015382,2]
[398449096,1765665040790,-1000.0,0.00015382,2]
[398449097,1765665040799,-1000.0,0.00015382,2]
[398449098,1765665040809,-1000.0,0.00015382,2]
[398449099,1765665040818,-722.09215706,0.00015382,2]
[398449100,1765665040827,-715.63,0.00015382,2]
[398449101,1765665040836,-715.63,0.00015382,2]
[398449102,1765665040846,-715.63,0.00015382,2]
[398449103,1765665040855,-715.63,0.00015382,2]
[398449104,1765665040864,-715.63,0.00015382,2]
[398449105,1765665040873,-715.63,0.00015382,2]
[398449106,1765665040882,-715.63,0.00015382,2]
[398449107,1765665040891,-715.63,0.00015382,2]
[398449108,1765665040900,-715.63,0.00015382,2]
[398449109,1765665040909,-715.63,0.00015382,2]
[398449110,1765665040918,-715.63,0.00015382,2]
[398449111,1765665040927,-715.63,0.00015382,2]
[398449112,1765665040936,-715.63,0.00015382,2]
[398449113,1765665040946,-715.63,0.00015382,2]
[398449114,1765665040955,-715.63,0.00015382,2]
[398449115,1765665040964,-715.63,0.00015382,2]
[398449116,1765665040973,-715.63,0.00015382,2]
[398449117,1765665040982,-715.63,0.00015382,2]
[398449118,1765665040991,-715.63,0.00015382,2]
[398449119,1765665041000,-715.63,0.00015382,2]
[398449120,1765665041015,-715.63,0.00015382,2]
[398449121,1765665041024,-715.86174929,0.00015382,2]
[398449122,1765665041033,-1193.92,0.00015382,2]
[398449123,1765665041042,-1193.92,0.00015382,2]
[398449124,1765665041051,-1193.92,0.00015382,2]
[398449125,1765665041060,-1193.92,0.00015382,2]
[398449126,1765665041069,-1193.92,0.00015382,2]
[398449127,1765665041078,-1193.92,0.00015382,2]
[398449128,1765665041089,-1193.92,0.00015382,2]
[398449129,1765665041099,-1193.92,0.00015382,2]
[398449130,1765665041108,-1193.92,0.00015382,2]
[398449131,1765665041118,-1193.92,0.00015382,2]
[398449132,1765665041127,-1193.92,0.00015382,2]
[398449133,1765665041137,-1193.92,0.00015382,2]
[398449134,1765665041146,-1193.92,0.00015382,2]
[398449135,1765665041155,-1193.92,0.00015382,2]
[398449136,1765665041165,-1193.92,0.00015382,2]
[398449137,1765665041174,-1193.92,0.00015382,2]
[398449138,1765665041184,-1193.92,0.00015382,2]
[398449139,1765665041192,-1193.92,0.00015382,2]
[398449140,1765665041202,-1193.92,0.00015382,2]
[398449141,1765665041211,-1194.05437453,0.00015382,2]
[398449142,1765665041220,-771.69,0.00015382,2]
[398449143,1765665041229,-771.69,0.00015382,2]
[398449144,1765665041238,-771.69,0.00015382,2]
[398449145,1765665041247,-771.69,0.00015382,2]
[398449146,1765665041256,-771.69,0.00015382,2]
[398449147,1765665041266,-771.69,0.00015382,2]
[398449148,1765665041275,-771.69,0.00015382,2]
[398449149,1765665041284,-771.69,0.00015382,2]
[398449150,1765665041293,-771.69,0.00015382,2]
[398449151,1765665041303,-586.4,0.00015382,2]
[398449152,1765665041312,-771.69,0.00015382,2]
[398449153,1765665041321,-586.4,0.00015382,2]
[398449154,1765665041330,-586.4,0.00015382,2]
[398449155,1765665041339,-771.69,0.00015382,2]
[398449156,1765665041348,-771.69,0.00015382,2]
[398449157,1765665041357,-586.4,0.00015382,2]
[398449158,1765665041367,-771.69,0.00015382,2]
[398449159,1765665041375,-586.4,0.00015382,2]
[398449160,1765665041384,-771.69,0.00015382,2]
[398449161,1765665041394,-586.4,0.00015382,2]
[398449162,1765665041403,-771.69,0.00015382,2]
[398449163,1765665041411,-586.4,0.00015382,2]
[398449164,1765665041420,-771.69,0.00015382,2]
[398449165,1765665041430,-586.4,0.00015382,2]
[398449166,1765665041439,-771.69,0.00015382,2]
[398449167,1765665041448,-586.4,0.00015382,2]
[398449168,1765665041457,-771.69,0.00015382,2]
[398449169,1765665041466,-586.4,0.00015382,2]
[398449170,1765665041475,-771.69,0.00015382,2]
[398449171,1765665041484,-586.4,0.00015382,2]
[398449172,1765665041493,-771.69,0.00015382,2]
[398449173,1765665041502,-586.4,0.00015382,2]
[398449174,1765665041511,-771.69,0.00015382,2]
[398449175,1765665041520,-586.4,0.00015382,2]
[398449176,1765665041528,-771.92275968,0.00015382,2]
[398449177,1765665041537,-586.4,0.00015382,2]
[398449178,1765665041546,-586.4,0.00015382,2]
[398449179,1765665041555,-586.60022621,0.00015382,2]
[398449180,1765665041564,-5545.59,0.00015382,2]
[398449181,1765665041573,-5545.59,0.00015382,2]
[398449182,1765665041582,-5545.59,0.00015382,2]
[398449183,1765665041591,-5545.59,0.00015382,2]
[398449184,1765665041600,-5545.59,0.00015382,2]
[398449185,1765665041608,-5545.59,0.00015382,2]
[398449186,1765665041617,-5545.59,0.00015382,2]
[398449187,1765665041626,-5545.59,0.00015382,2]
[398449188,1765665041635,-5545.59,0.00015382,2]
[398449189,1765665041645,-5545.59,0.00015382,2]
[398449190,1765665041654,-5545.59,0.00015382,2]
[398449191,1765665041663,-5545.59,0.00015382,2]
[398449192,1765665041671,-5545.59,0.00015382,2]
[398449193,1765665041680,-5545.59,0.00015382,2]
[398449194,1765665041689,-5545.7010844,0.00015382,2]
[398449195,1765665041699,-500.0,0.00015382,2]
[398449196,1765665041708,-500.0,0.00015382,2]
[398449197,1765665041718,-500.0,0.00015382,2]
[398449198,1765665041726,-500.0,0.00015382,2]
[398449199,1765665041735,-500.0,0.00015382,2]
[398449200,1765665041745,-263.74,0.00015382,2]
[398449201,1765665041754,-2993684.86924524,0.00015383,2]
[398449202,1765665041763,-151.0,0.000154,2]
[398449203,1765665041772,-151.0,0.000154,2]
[398449204,1765665041781,-151.0,0.000154,2]
[398449205,1765665041790,-151.0,0.000154,2]
[398449206,1765665041799,-1000.0,0.000154,2]
[398449207,1765665041808,-1000.0,0.000154,2]
[398449208,1765665041817,-1000.0,0.000154,2]
[398449209,1765665041826,-1000.0,0.000154,2]
[398449210,1765665041835,-1000.0,0.000154,2]
[398449211,1765665041843,-1000.0,0.000154,2]
[398449212,1765665041852,-1000.0,0.000154,2]
[398449213,1765665041861,-1000.0,0.000154,2]
[398449214,1765665041871,-1000.0,0.000154,2]
[398449215,1765665041880,-1000.0,0.000154,2]
[398449216,1765665041889,-151.0,0.000154,2]
[398449217,1765665041898,-151.0,0.000154,2]
[398449218,1765665041906,-151.0,0.000154,2]
[398449219,1765665041915,-151.0,0.000154,2]
[398449220,1765665041923,-151.0,0.000154,2]
[398449221,1765665041931,-151.0,0.000154,2]
[398449222,1765665041940,-151.0,0.000154,2]
[398449223,1765665041949,-151.0,0.000154,2]
[398449224,1765665041958,-151.0,0.000154,2]
[398449225,1765665041966,-151.0,0.000154,2]
[398449226,1765665041975,-151.0,0.000154,2]
[398449227,1765665041984,-151.0,0.000154,2]
[398449228,1765665041993,-151.0,0.000154,2]
[398449229,1765665042001,-250.0,0.000154,2]
[398449230,1765665042014,-250.0,0.000154,2]
[398449231,1765665042023,-250.0,0.000154,2]
[398449232,1765665042032,-250.0,0.000154,2]
[398449233,1765665042041,-250.0,0.000154,2]
[398449234,1765665042050,-250.0,0.000154,2]
[398449235,1765665042059,-250.0,0.000154,2]
[398449236,1765665042068,-250.0,0.000154,2]
[398449237,1765665042078,-194.8,0.000154,2]
[398449238,1765665042087,-446.0,0.00015487,2]
[398449239,1765665042095,-617.40005154,0.00015487,2]
[398449240,1765665042104,-500.0,0.00015518,2]
[398449241,1765665042113,-537.0,0.00015518,2]
[398449242,1765665042122,-500.0,0.00015518,2]
[398449243,1765665042131,-500.0,0.00015518,2]
[398449244,1765665042140,-538.21274117,0.00015518,2]
[398449245,1765665042150,-467.0,0.00015518,2]
[398449246,1765665042159,-500.0,0.00015518,2]
[398449247,1765665042168,-515.0,0.00015518,2]
[398449248,1765665042177,-500.0,0.00015518,2]
[398449249,1765665042195,-500.0,0.00015518,2]
[398449250,1765665042205,-150.0,0.00015518,2]
[398449251,1765665042214,-500.0,0.00015518,2]
[398449252,1765665042223,-500.0,0.00015518,2]
[398449253,1765665042232,-500.0,0.00015518,2]
[398449254,1765665042241,-500.0,0.00015518,2]
[398449255,1765665042251,-500.0,0.00015518,2]
[398449256,1765665042260,-500.0,0.00015518,2]
[398449257,1765665042269,-300.0,0.00015566,2]
[398449258,1765665042278,-300.0,0.00015566,2]
[398449259,1765665042287,-300.0,0.00015566,2]
[398449260,1765665042297,-300.0,0.00015566,2]
[398449261,1765665042305,-300.0,0.00015566,2]
[398449262,1765665042315,-300.0,0.00015566,2]
[398449263,1765665042324,-300.0,0.00015566,2]
[398449264,1765665042333,-300.0,0.00015566,2]
[398449265,1765665042342,-300.0,0.00015566,2]
[398449266,1765665042352,-300.0,0.00015566,2]
[398449267,1765665042361,-300.0,0.00015566,2]
[398449268,1765665042370,-300.0,0.00015566,2]
[398449269,1765665042379,-300.0,0.00015566,2]
[398449270,1765665042389,-300.0,0.00015566,2]
[398449271,1765665042398,-300.0,0.00015566,2]
[398449272,1765665042407,-500.0,0.00015655,2]
[398449273,1765665042416,-537.0,0.00015655,2]
[398449274,1765665042425,-500.0,0.00015655,2]
[398449275,1765665042434,-500.0,0.00015655,2]
[398449276,1765665042443,-467.0,0.00015655,2]
[398449277,1765665042452,-405.13094007,0.00015655,2]
[398449278,1765665042461,-515.0,0.00015655,2]
[398449279,1765665042471,-500.0,0.00015655,2]
[398449280,1765665042480,-500.0,0.00015655,2]
[398449281,1765665042489,-187.02928982,0.00015655,2]
[398449282,1765665042498,-194.34988413,0.00015655,2]
[398449283,1765665042508,-500.0,0.00015655,2]
[398449284,1765665042517,-500.0,0.00015655,2]
[398449285,1765665042526,-393.308308,0.00015655,2]
[398449286,1765665042534,-420.0,0.00015663,2]
[398449287,1765665042543,-273.0439324,0.00015685,2]